bitfinex-derivatives/quotes_SOLF0:USTF0_20260204
["timestamp","ask_amount","ask_price","bid_price","bid_amount"]
[1770243901110,7.22685511,92.319,92.19,8.26236977]
[1770243901414,7.22685511,92.259,92.13,8.26236977]
[1770243901616,7.22685511,92.239,92.11,8.26236977]
[1770243901915,7.22685511,92.185,92.08,8.26236977]
[1770243902414,7.23968495,92.212,92.12,8.26236977]
[1770243902612,152.0395,92.304,92.079,152.4097]
[1770243902613,7.23968495,92.279,92.14,8.26236977]
[1770243902810,152.0866,92.275,92.14,8.26236977]
[1770243903005,7.23968495,92.229,92.16,8.26236977]
[1770243903210,7.23968495,92.279,92.18,8.26236977]
[1770243903408,7.23968495,92.279,92.2,8.26236977]
[1770243903612,7.23968495,92.279,92.107,152.3626]
[1770243903613,7.23968495,92.304,92.22,8.26236977]
[1770243904212,7.23968495,92.304,92.2,8.26236977]
[1770243904511,7.23968495,92.304,92.22,8.26236977]
[1770243904711,7.23968495,92.304,92.2,8.26236977]
[1770243905310,7.23968495,92.304,92.201,2.71572603]
[1770243905509,7.23968495,92.304,92.2,8.26236977]
[1770243905510,7.23968495,92.304,92.202,2.71572603]
[1770243905714,9.7751,92.292,92.214,9.7833]
[1770243906015,7.23968495,92.304,92.18,8.26236977]
[1770243906212,7.18953188,92.299,92.16,8.26236977]
[1770243906415,7.18953188,92.247,92.165,9.7885]
[1770243906813,7.18953188,92.247,92.13,21.09220333]
[1770243907015,7.18953188,92.247,92.131,2.71683867]
[1770243907214,7.18953188,92.247,92.132,2.71683867]
[1770243907410,7.18953188,92.247,92.13,21.09220333]
[1770243907411,7.2349671,92.272,92.139,152.3099]
[1770243907610,7.2349671,92.339,92.167,152.2628]
[1770243907808,7.2349671,92.322,92.168,2.71683867]
[1770243908013,7.2349671,92.322,92.169,2.71683867]
[1770243908206,7.2349671,92.262,92.17,12.50483867]
[1770243908410,7.2349671,92.262,92.171,2.71683867]
[1770243908609,7.2349671,92.262,92.14,21.09220333]
[1770243908914,7.2349671,92.262,92.141,155.02367612]
[1770243909109,7.2285242,92.329,92.2,21.09220333]
[1770243909311,9.7731,92.312,92.226,9.7821]
[1770243909515,9.7731,92.312,92.227,2.71747612]
[1770243909808,9.7731,92.312,92.228,2.71747612]
[1770243910015,9.7731,92.312,92.229,2.71747612]
[1770243910214,9.7731,92.312,92.23,2.71747612]
[1770243910416,7.2285242,92.325,92.231,2.71747612]
[1770243910616,7.2285242,92.325,92.232,2.71747612]
[1770243910813,7.09958798,92.394,92.233,2.71747612]
[1770243911115,7.09958798,92.394,92.23,21.09220333]
[1770243911116,7.09958798,92.35,92.234,2.71747612]
[1770243911314,7.09958798,92.374,92.236,152.1501]
[1770243911510,7.09958798,92.371,92.282,9.7762]
[1770243911715,7.09958798,92.396,92.283,2.71747612]
[1770243911912,7.09958798,92.393,92.298,9.7745]
[1770243912113,7.09958798,92.393,92.299,2.71747612]
[1770243912313,7.09958798,92.417,92.3,2.71747612]
[1770243912514,7.09958798,92.417,92.301,2.71747612]
[1770243912712,7.15611596,92.402,92.308,9.7733]
[1770243912916,7.15611596,92.402,92.309,2.71747612]
[1770243913118,7.15611596,92.402,92.31,2.71747612]
[1770243913315,151.8091,92.444,92.26,21.09220333]
[1770243913316,7.15611596,92.375,92.26,21.09220333]
[1770243913510,7.15611596,92.404,92.265,152.1023]
[1770243913714,7.15611596,92.402,92.3,9.7742]
[1770243913916,7.15611596,92.402,92.26,21.09220333]
[1770243914217,7.15611596,92.402,92.208,19.98384307]
[1770243914218,7.15611596,92.402,92.324,9.7716]
[1770243914618,7.15611596,92.402,92.29,21.09220333]
[1770243914808,7.15611596,92.402,92.241,152.1418]
[1770243914809,7.17915939,92.397,92.291,2.7124266]
[1770243915120,7.17915939,92.397,92.292,2.71334994]
[1770243915321,7.17915939,92.374,92.246,152.1336]
[1770243915517,7.17915939,92.374,92.27,21.09220333]
[1770243915721,7.17915939,92.449,92.271,2.71383655]
[1770243915919,9.7639,92.398,92.312,9.773]
[1770243916113,7.17915939,92.407,92.27,21.09220333]
[1770243916316,7.17915939,92.407,92.271,2.71268866]
[1770243916613,7.17915939,92.386,92.272,2.71268866]
[1770243916815,7.17915939,92.386,92.273,2.71268866]
[1770243917019,7.17915939,92.386,92.293,9.7749]
[1770243917320,7.17915939,92.386,92.26,21.09220333]
[1770243917519,9.7629,92.408,92.27,152.0932]
[1770243917715,7.1344379,92.413,92.29,21.09220333]
[1770243917917,7.1344379,92.413,92.291,2.71296597]
[1770243918117,151.7682,92.469,92.313,9.7728]
[1770243918118,7.1344379,92.411,92.313,9.7728]
[1770243918518,151.742,92.485,92.235,152.1506]
[1770243918519,7.13425501,92.459,92.32,21.09220333]
[1770243918711,7.13425501,92.459,92.321,2.7119451]
[1770243918913,7.13425501,92.459,92.322,2.7119451]
[1770243919115,7.13425501,92.445,92.35,9.7689]
[1770243919721,7.13425501,92.445,92.32,21.09220333]
[1770243920118,7.13425501,92.425,92.32,21.09220333]
[1770243921225,7.14520833,92.45,92.322,152.0074]
[1770243921424,7.14520833,92.501,92.35,21.09220333]
[1770243921625,7.14520833,92.455,92.32,21.09220333]
[1770243921824,7.14520833,92.455,92.321,2.71132853]
[1770243922027,7.14520833,92.455,92.322,2.71132853]
[1770243922221,7.14520833,92.455,92.365,9.7674]
[1770243922421,7.14520833,92.455,92.32,21.09220333]
[1770243922823,7.14381778,92.439,92.341,9.7699]
[1770243923226,7.14381778,92.439,92.32,21.09220333]
[1770243923227,7.14381778,92.499,92.325,152.0034]
[1770243923423,7.14381778,92.499,92.326,2.71142818]
[1770243923624,7.14381778,92.47,92.378,9.7659]
[1770243923921,7.14381778,92.47,92.35,21.09220333]
[1770243924127,7.14381778,92.47,92.38,21.09220333]
[1770243924719,7.14381778,92.47,92.39,9.7648]
[1770243924916,7.14381778,92.47,92.35,21.09220333]
[1770243925124,7.10977109,92.535,92.38,21.09220333]
[1770243925325,7.10977109,92.535,92.381,2.71101723]
[1770243925524,151.6818,92.522,92.382,2.71101723]
[1770243925726,7.10977109,92.466,92.373,9.7665]
[1770243925928,7.10977109,92.492,92.38,21.09220333]
[1770243926225,7.10977109,92.515,92.41,21.09220333]
[1770243926418,7.10977109,92.515,92.43,8.21439794]
[1770243927521,7.10977109,92.515,92.446,9.7588]
[1770243927917,7.10977109,92.515,92.431,9.7594]
[1770243928121,7.10977109,92.515,92.43,8.21439794]
[1770243928322,7.10283384,92.54,92.45,8.21439794]
[1770243928618,7.10283384,92.54,92.451,2.7089999]
[1770243928819,7.10283384,92.54,92.45,8.21439794]
[1770243929016,7.10283384,92.54,92.469,9.7554]
[1770243929621,7.10283384,92.54,92.479,9.7543]
[1770243929821,7.1096332,92.589,92.45,8.21439794]
[1770243930123,7.1096332,92.589,92.47,8.21439794]
[1770243930929,7.10564261,92.57,92.45,8.21439794]
[1770243931322,7.10564261,92.57,92.47,8.21439794]
[1770243931929,7.10564261,92.547,92.366,151.9204]
[1770243932120,7.10564261,92.547,92.337,151.968]
[1770243932121,7.10564261,92.479,92.35,8.21439794]
[1770243932319,7.10564261,92.479,92.299,152.0299]
[1770243932320,7.10564261,92.479,92.351,2.71109433]
[1770243932523,7.20121636,92.434,92.341,9.769]
[1770243932723,7.20121636,92.513,92.42,8.21439794]
[1770243932927,7.20121636,92.513,92.4,8.21439794]
[1770243933121,7.20121636,92.476,92.389,9.7638]
[1770243933326,7.20121636,92.476,92.38,8.21439794]
[1770243933627,9.7587,92.438,92.351,9.7678]
[1770243933832,7.20121636,92.449,92.267,152.0841]
[1770243933833,7.20121636,92.449,92.32,8.21439794]
[1770243934021,7.20121636,92.439,92.321,2.71189222]
[1770243934330,7.20121636,92.41,92.311,9.772]
[1770243934529,7.20121636,92.41,92.251,152.1097]
[1770243934530,7.20121636,92.41,92.31,8.21439794]
[1770243934730,7.15680297,92.409,92.323,9.7708]
[1770243934925,7.15680297,92.409,92.31,8.21439794]
[1770243935126,7.15680297,92.409,92.311,2.71252181]
[1770243935327,7.15680297,92.409,92.326,9.7705]
[1770243935830,7.15680297,92.407,92.311,9.772]
[1770243936129,7.15680297,92.399,92.28,8.21439794]
[1770243936319,7.15680297,92.352,92.268,9.7766]
[1770243936525,7.15680297,92.352,92.2,21.04630383]
[1770243936726,7.15680297,92.352,92.201,2.71453446]
[1770243937019,7.14022319,92.32,92.219,9.7818]
[1770243937228,7.14022319,92.32,92.22,2.71453446]
[1770243937425,7.14022319,92.303,92.221,2.71546933]
[1770243937632,7.14022319,92.303,92.222,2.7151645]
[1770243937829,7.14022319,92.303,92.223,2.7151645]
[1770243938023,7.14022319,92.303,92.241,9.7795]
[1770243938231,7.14022319,92.303,92.242,2.7151645]
[1770243938535,7.13012888,92.339,92.244,9.7792]
[1770243938730,7.13012888,92.339,92.245,2.7151645]
[1770243938924,7.13012888,92.339,92.246,2.7151645]
[1770243939127,7.13012888,92.339,92.247,2.7151645]
[1770243939332,7.13012888,92.339,92.169,152.2445]
[1770243939333,7.13012888,92.339,92.248,2.7151645]
[1770243939527,7.13012888,92.319,92.249,2.7151645]
[1770243939832,7.13012888,92.319,92.212,9.7826]
[1770243940034,7.13012888,92.319,92.2,21.04630383]
[1770243940035,7.13012888,92.319,92.214,9.7823]
[1770243940228,7.13012888,92.319,92.2,21.04630383]
[1770243940229,7.13012888,92.319,92.215,2.71509664]
[1770243940424,7.13012888,92.319,92.216,2.71509664]
[1770243940637,7.13012888,92.319,92.217,2.71509664]
[1770243940932,7.13012888,92.319,92.218,2.71509664]
[1770243941132,7.13012888,92.319,92.219,2.71509664]
[1770243941329,151.8493,92.41,92.2,21.04630383]
[1770243941330,21.04630383,92.4,92.22,2.71509664]
[1770243941534,7.13853614,92.399,92.23,21.04630383]
[1770243941726,7.13853614,92.395,92.231,2.71509664]
[1770243941927,7.13853614,92.363,92.248,9.7788]
[1770243942123,7.13853614,92.363,92.249,2.71509664]
[1770243942328,7.13853614,92.363,92.25,2.71509664]
[1770243942528,7.13853614,92.363,92.251,2.71509664]
[1770243942727,7.13853614,92.363,92.216,152.1682]
[1770243942728,7.13853614,92.363,92.26,21.04630383]
[1770243942924,7.13853614,92.363,92.261,2.71509664]
[1770243943129,7.13853614,92.363,92.262,2.71509664]
[1770243943330,7.13853614,92.363,92.26,21.04630383]
[1770243943331,7.13853614,92.363,92.285,9.7748]
[1770243943531,7.14448764,92.392,92.286,2.71509664]
[1770243943732,7.14448764,92.392,92.287,2.71509664]
[1770243943930,7.14448764,92.391,92.288,2.71509664]
[1770243944126,7.14448764,92.391,92.289,2.71509664]
[1770243944327,7.14448764,92.391,92.29,2.71509664]
[1770243944527,7.1524072,92.381,92.291,2.71509664]
[1770243944730,7.1524072,92.381,92.292,2.71509664]
[1770243944939,7.1524072,92.381,92.293,2.71509664]
[1770243945133,7.1524072,92.381,92.294,2.71509664]
[1770243945437,7.1524072,92.378,92.295,2.71509664]
[1770243945631,7.1524072,92.378,92.26,21.04630383]
[1770243945632,7.1524072,92.378,92.296,2.71509664]
[1770243945826,7.1524072,92.378,92.297,2.71509664]
[1770243946027,7.1524072,92.378,92.298,2.71509664]
[1770243946230,7.1524072,92.35,92.299,2.71509664]
[1770243946432,7.1524072,92.35,92.3,2.71509664]
[1770243946635,7.1524072,92.35,92.301,2.71509664]
[1770243946839,7.1524072,92.35,92.302,2.71509664]
[1770243947138,7.1524072,92.35,92.303,2.71509664]
[1770243947436,7.1524072,92.35,92.304,2.71509664]
[1770243947637,7.1524072,92.35,92.305,2.71509664]
[1770243947837,7.1524072,92.35,92.306,2.71509664]
[1770243948038,7.14905231,92.376,92.307,2.71509664]
[1770243948241,7.14905231,92.45,92.308,2.71509664]
[1770243948536,7.04569002,92.414,92.33,9.7701]
[1770243948738,7.04569002,92.414,92.331,2.71509664]
[1770243948930,7.04569002,92.414,92.332,2.71509664]
[1770243949132,7.04569002,92.414,92.333,2.71509664]
[1770243949328,7.04569002,92.414,92.334,2.71509664]
[1770243949538,7.04569002,92.414,92.335,2.71509664]
[1770243949733,7.04569002,92.414,92.336,2.71509664]
[1770243949936,7.04569002,92.414,92.337,2.71509664]
[1770243950137,7.04569002,92.414,92.338,2.71509664]
[1770243950338,9.7616,92.411,92.339,2.71509664]
[1770243950541,9.7616,92.411,92.34,2.71509664]
[1770243950742,9.7616,92.411,92.341,2.71509664]
[1770243950937,7.04569002,92.414,92.29,21.04630383]
[1770243950938,7.04569002,92.414,92.342,2.71509664]
[1770243951137,7.04569002,92.414,92.343,2.71509664]
[1770243951338,7.04569002,92.414,92.344,2.71509664]
[1770243951538,7.04569002,92.414,92.345,2.71509664]
[1770243951839,7.04569002,92.414,92.33,9.7701]
[1770243951840,7.04569002,92.414,92.346,2.71509664]
[1770243952042,7.04569002,92.414,92.347,2.71509664]
[1770243952242,7.05373174,92.409,92.348,2.71509664]
[1770243952438,7.05373174,92.409,92.349,2.71509664]
[1770243952740,7.05373174,92.409,92.318,9.7714]
[1770243952741,9.7631,92.397,92.35,2.71509664]
[1770243952938,9.7631,92.397,92.351,2.71509664]
[1770243953135,7.05373174,92.409,92.352,2.71509664]
[1770243953332,7.17870898,92.407,92.353,2.71509664]
[1770243953636,7.17870898,92.407,92.318,9.7714]
[1770243953637,7.17870898,92.407,92.354,2.71509664]
[1770243953837,7.17870898,92.407,92.355,2.71509664]
[1770243954037,7.17870898,92.407,92.356,2.71509664]
[1770243954231,7.17870898,92.407,92.357,2.71509664]
[1770243954434,7.17870898,92.407,92.334,9.7697]
[1770243954435,7.17870898,92.407,92.358,2.71509664]
[1770243954643,7.17870898,92.407,92.359,2.71509664]
[1770243954840,7.17870898,92.407,92.36,2.71509664]
[1770243955041,7.17870898,92.407,92.361,2.71509664]
[1770243955240,7.17870898,92.407,92.362,2.71509664]
[1770243955538,7.17870898,92.407,92.363,2.71509664]
[1770243955845,151.7525,92.469,92.364,2.71509664]
[1770243955846,16.83328065,92.405,92.364,2.71509664]
[1770243956043,16.83328065,92.405,92.365,2.71509664]
[1770243956243,151.7525,92.469,92.334,9.7697]
[1770243956244,9.7625,92.403,92.334,9.7697]
[1770243956443,5.71343233,92.402,92.334,9.7697]
[1770243956840,5.71343233,92.402,92.323,9.7709]
[1770243957343,5.7218449,92.4,92.323,9.7709]
[1770243958646,5.65704738,92.397,92.323,9.7709]
[1770243959438,5.65704738,92.397,92.311,0.09101273]
[1770243959644,6.19083762,92.376,92.289,2.25400111]
[1770243960042,9.766,92.369,92.293,12.02800111]
[1770243960248,9.766,92.369,92.294,2.25400111]
[1770243960946,151.8032,92.438,92.24,152.1279]
[1770243960947,6.19083762,92.351,92.241,3.11229751]
[1770243961345,9.7701,92.33,92.259,9.7776]
[1770243961541,6.19083762,92.339,92.241,3.11229751]
[1770243961843,9.773,92.303,92.232,9.7804]
[1770243962045,6.19083762,92.339,92.201,4.07046688]
[1770243962439,6.19083762,92.289,92.201,4.07046688]
[1770243963240,6.19083762,92.275,92.175,5.00525546]
[1770243963841,9.7762,92.273,92.188,15.63035586]
[1770243964041,9.7762,92.273,92.189,5.84515586]
[1770243964446,151.9905,92.324,92.189,5.84515586]
[1770243964447,9.7782,92.254,92.189,5.84515586]
[1770243964852,9.7782,92.254,92.163,5.84515586]
[1770243965451,6.19083762,92.25,92.163,5.84515586]
[1770243965847,6.19083762,92.234,92.137,5.84515586]
[1770243966247,6.19083762,92.219,92.101,5.84515586]
[1770243966447,6.19083762,92.176,92.078,5.84515586]
[1770243966648,6.19083762,92.159,92.055,5.84515586]
[1770243967057,6.19083762,92.15,92.055,5.84515586]
[1770243967951,6.19083762,92.15,92.061,5.84515586]
[1770243968256,6.19083762,92.171,92.069,5.84515586]
[1770243968458,6.19083762,92.171,92.07,2.71964751]
[1770243968656,6.19083762,92.15,92.071,2.71964751]
[1770243968851,6.19083762,92.15,92.072,2.72010782]
[1770243969053,6.19083762,92.15,92.045,5.84515586]
[1770243969258,6.19083762,92.148,92.047,5.84515586]
[1770243969559,6.19083762,92.148,92.048,2.7200321]
[1770243969755,6.19083762,92.133,92.048,2.7200321]
[1770243969956,6.19083762,92.133,92.049,5.84515586]
[1770243970156,6.19083762,92.133,92.051,5.84515586]
[1770243970357,6.19083762,92.161,92.067,5.84515586]
[1770243970557,6.19083762,92.161,92.069,5.84515586]
[1770243970855,6.19083762,92.159,92.053,5.84515586]
[1770243971047,6.19083762,92.159,92.055,5.84515586]
[1770243971252,6.19083762,92.159,92.057,5.84515586]
[1770243971855,6.19083762,92.156,92.06,5.84515586]
[1770243972252,6.19083762,92.152,92.06,5.84515586]
[1770243972462,6.19083762,92.152,92.062,5.84515586]
[1770243972657,6.19083762,92.152,92.064,5.84515586]
[1770243972858,6.19083762,92.152,92.066,5.84515586]
[1770243973356,6.19083762,92.137,92.021,5.84515586]
[1770243973560,6.19083762,92.137,92.02,31.70814114]
[1770243973561,6.19083762,92.137,92.023,5.84515586]
[1770243973760,6.19083762,92.137,92.025,5.84515586]
[1770243974058,6.19083762,92.121,92.027,5.84515586]
[1770243974258,6.19083762,92.121,92.028,2.72020001]
[1770243974660,6.30309222,92.117,92.008,5.84515586]
[1770243974959,6.30309222,92.117,92.01,5.84515586]
[1770243975158,6.30309222,92.113,92.016,5.84515586]
[1770243975356,6.30309222,92.189,92.023,5.84515586]
[1770243975556,6.30471415,92.172,92.069,5.84515586]
[1770243975752,6.30471415,92.172,92.05,31.70814114]
[1770243975753,6.30471415,92.172,92.071,5.84515586]
[1770243975951,6.30471415,92.172,92.073,5.84515586]
[1770243976158,6.30471415,92.172,92.075,5.84515586]
[1770243976362,9.7873,92.169,92.077,5.84515586]
[1770243976568,6.31972533,92.168,92.077,5.84515586]
[1770243977164,6.31972533,92.168,91.988,19.6127]
[1770243977165,6.31972533,92.15,92.036,5.84515586]
[1770243977458,6.31972533,92.15,92.038,5.84515586]
[1770243977658,6.31972533,92.15,92.07,5.84515586]
[1770243977863,6.31972533,92.15,92.072,5.84515586]
[1770243978065,6.31972533,92.15,92.074,5.84515586]
[1770243978258,6.31972533,92.15,92.075,2.71919707]
[1770243979166,6.31972533,92.15,92.074,5.84515586]
[1770243979167,6.31972533,92.15,92.078,9.7968]
[1770243979571,6.31972533,92.15,92.074,5.84515586]
[1770243979972,6.31120863,92.148,92.052,9.7996]
[1770243980273,6.31120863,92.148,92.053,5.84515586]
[1770243980566,6.31120863,92.148,92.055,5.84515586]
[1770243980972,6.31120863,92.148,92.032,5.84515586]
[1770243981163,6.31120863,92.148,92.034,5.84515586]
[1770243981370,6.31120863,92.148,92.048,5.84515586]
[1770243981676,6.31120863,92.148,92.05,5.84515586]
[1770243981872,6.31120863,92.148,92.052,5.84515586]
[1770243982072,6.47400835,92.144,92.054,5.84515586]
[1770243982470,6.5048076,92.134,92.055,9.7992]
[1770243982676,6.5048076,92.134,92.056,5.84515586]
[1770243983078,6.5048076,92.134,92.062,9.7985]
[1770243983277,6.5048076,92.134,92.056,5.84515586]
[1770243983679,6.51038313,92.129,92.038,9.8011]
[1770243984180,6.51038313,92.129,92.033,5.84515586]
[1770243984477,15.8811424,92.113,91.981,15.71361268]
[1770243984781,15.8811424,92.113,91.983,15.71361268]
[1770243984978,15.8811424,92.113,91.985,15.71361268]
[1770243985170,15.8811424,92.113,91.987,15.71361268]
[1770243985373,15.8811424,92.106,91.989,15.71361268]
[1770243985574,15.8811424,92.106,91.991,15.71361268]
[1770243985780,15.8811424,92.106,91.993,15.71361268]
[1770243985977,15.8811424,92.106,91.995,15.71361268]
[1770243986175,15.8811424,92.092,92.003,9.8047]
[1770243986373,15.8811424,92.092,92.004,2.72105904]
[1770243986577,15.8811424,92.092,92.005,2.72105904]
[1770243986777,152.2755,92.152,92.006,2.72105904]
[1770243986778,25.6783424,92.075,92.006,2.72105904]
[1770243986972,15.8811424,92.074,91.992,9.806]
[1770243987182,15.8811424,92.074,91.993,18.4353429]
[1770243987482,15.8811424,92.074,92.021,9.8029]
[1770243987681,15.8811424,92.097,92.021,25.51651268]
[1770243987883,15.8811424,92.097,92.022,18.43479409]
[1770243988077,15.8811424,92.097,92.041,9.8008]
[1770243988281,15.8811424,92.097,92.022,15.71361268]
[1770243988479,15.8811424,92.097,92.023,2.72081008]
[1770243988678,9.796,92.087,92.024,2.72081008]
[1770243988873,15.8811424,92.086,92.0,15.71361268]
[1770243989077,15.8811424,92.086,92.001,18.43488151]
[1770243989382,15.8811424,92.139,92.041,15.71361268]
[1770243989580,15.8811424,92.139,92.061,15.71361268]
[1770243989877,15.8811424,92.139,92.063,15.71361268]
[1770243990178,15.8811424,92.139,92.064,18.43488151]
[1770243990384,15.8811424,92.139,92.065,2.72126883]
[1770243990582,15.8811424,92.139,92.066,2.72126883]
[1770243990782,15.8811424,92.163,92.089,15.71361268]
[1770243990984,15.8811424,92.229,92.101,15.71361268]
[1770243991183,15.8811424,92.229,92.103,15.71361268]
[1770243991380,15.8811424,92.198,92.11,9.7934]
[1770243991575,15.8811424,92.198,92.111,18.4326044]
[1770243991784,15.8811424,92.198,92.12,8.29317853]
[1770243991980,15.8811424,92.198,92.117,9.7927]
[1770243992277,15.8811424,92.198,92.119,15.71361268]
[1770243992483,15.8811424,92.198,92.12,2.7182984]
[1770243992677,15.8811424,92.198,92.119,15.71361268]
[1770243992678,15.8811424,92.198,92.125,9.7918]
[1770243992883,15.8811424,92.198,92.126,2.7182984]
[1770243993182,15.8811424,92.198,92.13,9.7913]
[1770243993381,15.8811424,92.224,92.14,8.29317853]
[1770243993580,15.8811424,92.224,92.141,2.7182984]
[1770243993775,15.8811424,92.25,92.161,15.71361268]
[1770243993982,15.8811424,92.274,92.181,15.71361268]
[1770243994278,15.8811424,92.274,92.202,9.7837]
[1770243994479,151.9144,92.371,92.183,15.71361268]
[1770243994480,15.8811424,92.301,92.22,24.00679121]
[1770243994681,15.8811424,92.301,92.221,18.43191108]
[1770243994885,15.8811424,92.301,92.223,15.71361268]
[1770243995079,15.8811424,92.301,92.224,2.7182984]
[1770243995282,15.8811424,92.301,92.225,2.7182984]
[1770243995579,15.8811424,92.353,92.231,15.71361268]
[1770243995774,15.8811424,92.353,92.271,15.71361268]
[1770243995975,15.8811424,92.353,92.29,8.29317853]
[1770243996180,15.8811424,92.353,92.291,2.7182984]
[1770243996380,15.8811424,92.353,92.294,9.7738]
[1770243996586,15.8811424,92.353,92.295,2.7182984]
[1770243996884,15.8811424,92.353,92.271,15.71361268]
[1770243996885,15.8811424,92.353,92.296,2.7182984]
[1770243997084,15.8811424,92.353,92.297,2.7182984]
[1770243997286,15.8811424,92.353,92.298,2.7182984]
[1770243997586,15.8811424,92.353,92.299,2.7182984]
[1770243997786,15.8811424,92.353,92.271,15.71361268]
[1770243997787,15.8811424,92.353,92.3,2.7182984]
[1770243997986,15.8811424,92.353,92.301,2.7182984]
[1770243998186,15.8811424,92.353,92.302,2.7182984]
[1770243998388,15.8811424,92.353,92.303,2.7182984]
[1770243998586,15.8811424,92.353,92.304,2.7182984]
[1770243998783,15.8811424,92.353,92.305,2.7182984]
[1770243998992,31.54436637,92.44,92.305,2.7182984]
[1770243998993,15.8811424,92.437,92.306,2.7182984]
[1770243999185,15.8811424,92.437,92.308,15.71361268]
[1770243999390,15.8811424,92.429,92.323,9.7708]
[1770243999691,15.8811424,92.429,92.325,15.71361268]
[1770243999884,15.8811424,92.429,92.34,9.7691]
[1770244000083,15.8811424,92.429,92.341,2.7182984]
[1770244000284,15.8811424,92.429,92.32,31.54436637]
[1770244000285,15.8811424,92.429,92.345,25.48211268]
[1770244000485,15.8811424,92.429,92.346,18.43191108]
[1770244000681,15.8811424,92.429,92.347,18.43191108]
[1770244000987,15.8811424,92.429,92.348,18.43191108]
[1770244001293,15.8811424,92.429,92.353,9.7677]
[1770244001485,15.8811424,92.429,92.354,2.7182984]
[1770244001685,15.8811424,92.429,92.355,2.7182984]
[1770244001886,15.8811424,92.429,92.356,18.43191108]
[1770244002079,15.8811424,92.429,92.357,18.43191108]
[1770244002280,15.8811424,92.457,92.359,15.71361268]
[1770244002484,15.8811424,92.457,92.316,152.0023]
[1770244002485,15.8811424,92.485,92.365,15.71361268]
[1770244002683,15.8811424,92.485,92.367,15.71361268]
[1770244002985,15.8811424,92.513,92.421,15.71361268]
[1770244003189,15.8811424,92.513,92.423,15.71361268]
[1770244003388,15.8811424,92.513,92.425,15.71361268]
[1770244003589,15.8811424,92.513,92.426,2.7182984]
[1770244003789,15.8811424,92.513,92.427,2.7182984]
[1770244003987,15.8811424,92.513,92.428,2.7182984]
[1770244004183,15.8811424,92.513,92.425,15.71361268]
[1770244004383,15.8811424,92.513,92.301,9.9328191]
[1770244004384,15.8811424,92.513,92.4,15.71361268]
[1770244004584,15.8811424,92.513,92.361,9.7668]
[1770244004888,31.54436637,92.54,92.362,18.42388631]
[1770244004889,15.8811424,92.477,92.362,18.42388631]
[1770244005091,15.8811424,92.477,92.364,15.71361268]
[1770244005388,15.8811424,92.477,92.366,15.71361268]
[1770244005587,15.8811424,92.477,92.368,15.71361268]
[1770244006094,15.8811424,92.452,92.331,15.71361268]
[1770244006295,15.8811424,92.452,92.332,2.71126195]
[1770244006486,15.8811424,92.451,92.346,15.71361268]
[1770244006693,15.8811424,92.476,92.361,15.71361268]
[1770244006893,15.8811424,92.476,92.363,15.71361268]
[1770244007089,15.8811424,92.476,92.365,15.71361268]
[1770244007393,15.8811424,92.511,92.397,15.71361268]
[1770244007588,15.8811424,92.511,92.421,15.71361268]
[1770244007792,15.8811424,92.541,92.423,15.71361268]
[1770244007995,15.8811424,92.541,92.422,2.7110502]
[1770244007996,15.8811424,92.541,92.425,15.71361268]
[1770244008197,15.8811424,92.541,92.427,15.71361268]
[1770244008393,15.8811424,92.541,92.429,15.71361268]
[1770244009795,15.8811424,92.541,92.447,9.7577]
[1770244010391,15.8811424,92.541,92.429,15.71361268]
[1770244010392,15.8811424,92.541,92.433,9.7592]
[1770244010589,15.8811424,92.541,92.433,15.71361268]
[1770244011090,15.8811424,92.541,92.447,9.7577]
[1770244011391,15.8811424,92.541,92.4,31.54436637]
[1770244011392,15.8811424,92.571,92.499,9.7522]
[1770244011596,15.8811424,92.596,92.478,15.71361268]
[1770244011895,15.8811424,92.576,92.478,15.71361268]
[1770244012596,15.8811424,92.57,92.478,15.71361268]
[1770244012793,15.8811424,92.57,92.45,15.71361268]
[1770244013392,15.8811424,92.554,92.454,9.7569]
[1770244013695,15.8811424,92.554,92.425,15.71361268]
[1770244013896,15.8811424,92.554,92.431,23.2168916]
[1770244014297,15.8811424,92.554,92.43,31.54436637]
[1770244014298,15.8811424,92.554,92.481,9.7541]
[1770244014493,24.55209383,92.621,92.491,23.2168916]
[1770244014795,24.55209383,92.62,92.522,9.7498]
[1770244014999,24.55209383,92.62,92.516,23.2168916]
[1770244015400,24.55209383,92.62,92.523,23.2168916]
[1770244016003,24.55209383,92.62,92.476,9.7547]
[1770244016004,24.55209383,92.6,92.476,9.7547]
[1770244016297,24.55209383,92.6,92.477,23.2168916]
[1770244016496,24.55209383,92.6,92.507,32.9681916]
[1770244016697,24.55209383,92.6,92.508,23.2168916]
[1770244016897,24.55209383,92.66,92.531,23.2168916]
[1770244017100,24.55209383,92.66,92.53,20.93319113]
[1770244017101,24.55209383,92.646,92.536,23.2168916]
[1770244017803,24.55209383,92.63,92.51,23.2168916]
[1770244018103,24.55209383,92.612,92.51,23.2168916]
[1770244018594,20.93319113,92.66,92.495,9.7527]
[1770244018595,24.55209383,92.594,92.495,9.7527]
[1770244018797,24.55209383,92.594,92.471,23.2168916]
[1770244018997,24.55209383,92.592,92.441,23.2168916]